bitfinex-derivatives/quotes_BTCF0:USTF0_20250324
["timestamp","ask_amount","ask_price","bid_price","bid_amount"]
[1742796401998,0.1149507,86992.0,86991.0,0.00041983]
[1742796402206,1.7431507,86992.0,86991.0,0.00041983]
[1742796402400,1.8931507,86992.0,86991.0,0.00041983]
[1742796402697,2.00809521,86992.0,86991.0,0.00041983]
[1742796402888,2.07039521,86992.0,86991.0,0.00041983]
[1742796403301,2.07639521,86992.0,86991.0,0.00041983]
[1742796403696,2.07839521,86992.0,86991.0,0.00041983]
[1742796404597,2.07835521,86992.0,86991.0,0.00041983]
[1742796404798,0.1149653,86981.0,86980.0,0.0306]
[1742796404998,0.8502453,86981.0,86980.0,0.0306]
[1742796405589,1.02831359,86981.0,86980.0,0.0306]
[1742796405794,0.62163359,86981.0,86980.0,0.0617]
[1742796405998,0.70525359,86981.0,86980.0,0.0617]
[1742796406195,0.70925359,86981.0,86980.0,0.06354]
[1742796406902,0.59473359,86981.0,86980.0,0.06354]
[1742796407105,0.70925359,86981.0,86980.0,0.06354]
[1742796407399,0.71125359,86981.0,86980.0,0.06354]
[1742796407592,0.59673359,86981.0,86980.0,0.1785066]
[1742796407794,0.59628829,86981.0,86980.0,0.1785066]
[1742796407997,0.59673359,86981.0,86980.0,0.06354]
[1742796408199,0.71125359,86981.0,86980.0,0.06362]
[1742796408399,0.71125359,86981.0,86980.0,0.1766666]
[1742796408603,0.71125359,86981.0,86980.0,0.1785066]
[1742796409202,0.71125359,86981.0,86980.0,0.06354]
[1742796409697,0.71125359,86981.0,86980.0,0.1766666]
[1742796409904,0.71125359,86981.0,86980.0,0.1785066]
[1742796410403,0.70925359,86981.0,86980.0,0.1785066]
[1742796411103,0.70825359,86981.0,86980.0,0.1785066]
[1742796411696,0.70625359,86981.0,86980.0,0.1785066]
[1742796412004,0.70825359,86981.0,86980.0,0.1785066]
[1742796415103,0.59373359,86981.0,86980.0,0.1785066]
[1742796415302,0.70825359,86981.0,86980.0,0.1785066]
[1742796419606,0.34745359,86981.0,86980.0,0.1785066]
[1742796421220,0.00017238,86989.0,86986.0,0.0574793]
[1742796421419,0.00017238,86989.0,86988.0,0.114956]
[1742796421617,0.00017238,86989.0,86988.0,0.179376]
[1742796422011,0.11514067,86989.0,86988.0,0.179376]
[1742796423015,0.11514067,86989.0,86988.0,0.180376]
[1742796425117,0.11514067,86989.0,86988.0,0.541176]
[1742796425908,0.25144053,86989.0,86988.0,0.541176]
[1742796426620,0.25144053,86989.0,86988.0,0.540176]
[1742796426929,0.25144053,86989.0,86988.0,0.541176]
[1742796427819,0.17053543,86995.0,86994.0,0.1149481]
[1742796428013,0.17053543,86995.0,86994.0,0.1167881]
[1742796428216,0.20464252,87001.0,87000.0,0.1149402]
[1742796428415,0.20464252,87001.0,87000.0,0.4776202]
[1742796428814,8e-05,87004.0,87001.0,0.0574694]
[1742796429030,8e-05,87004.0,87003.0,0.1149362]
[1742796429316,8e-05,87004.0,87003.0,0.2313362]
[1742796429622,0.00017238,87009.0,87008.0,0.1149296]
[1742796429824,0.00017238,87009.0,87008.0,0.4775696]
[1742796430318,0.1151116,87009.0,87008.0,0.4775696]
[1742796430715,0.00017238,87009.0,87008.0,0.4775696]
[1742796432125,0.00317238,87009.0,87008.0,0.5088696]
[1742796434219,0.0004,87016.0,87015.0,0.1149204]
[1742796434621,0.0004,87016.0,87015.0,0.1167604]
[1742796434927,0.11533129,87016.0,87015.0,0.4775604]
[1742796435627,0.01161742,87017.0,87016.0,0.114919]
[1742796435924,0.00017238,87024.0,87023.0,0.1149098]
[1742796436128,0.3608,87045.0,87031.0,0.1148992]
[1742796436129,0.98736,87036.0,87031.0,0.1148992]
[1742796436316,0.98736,87036.0,87031.0,0.1167392]
[1742796436517,0.11444,87042.0,87031.0,0.1185792]
[1742796436715,0.11444,87042.0,87031.0,0.1167392]
[1742796436922,0.11444,87042.0,87031.0,0.1819392]
[1742796437427,0.00855725,87036.0,87031.0,0.1819392]
[1742796437817,0.00855725,87036.0,87031.0,0.19352721]
[1742796438020,0.00855725,87036.0,87031.0,0.1819392]
[1742796438225,0.0661,87035.0,87031.0,0.1819392]
[1742796438531,8e-05,87035.0,87031.0,0.19332792]
[1742796438720,8e-05,87035.0,87031.0,0.20806921]
[1742796439722,8e-05,87035.0,87031.0,0.19332792]
[1742796441031,0.00017238,87040.0,87039.0,0.1148887]
[1742796441327,0.00017238,87040.0,87039.0,0.4775287]
[1742796441530,0.00017238,87040.0,87039.0,0.5424287]
[1742796449127,0.00017238,87040.0,87039.0,0.55730636]
[1742796450934,8e-05,87044.0,87043.0,0.1148834]
[1742796451135,8e-05,87044.0,87043.0,0.1167234]
[1742796451525,0.03,87046.0,87045.0,0.1148808]
[1742796451733,0.03,87046.0,87045.0,0.1167208]
[1742796452132,0.03,87046.0,87045.0,0.1787208]
[1742796453433,0.03,87046.0,87045.0,0.1167208]
[1742796453434,0.1448794,87046.0,87045.0,0.1167208]
[1742796453634,0.0614,87046.0,87045.0,0.1167208]
[1742796454031,0.0946,87046.0,87045.0,0.1167208]
[1742796454535,0.1148874,87040.0,87039.0,0.3608]
[1742796454737,0.1148874,87040.0,87039.0,0.4756887]
[1742796455042,0.1162074,87040.0,87039.0,0.31222]
[1742796455233,0.23108984,87040.0,87039.0,0.26232]
[1742796455436,0.26206984,87040.0,87039.0,0.3758887]
[1742796456837,0.2733983,87040.0,87039.0,0.3758887]
[1742796457433,0.2733983,87040.0,87039.0,0.1148887]
[1742796460358,0.2747183,87040.0,87039.0,0.1471087]
[1742796462557,0.2747183,87040.0,87039.0,0.1800087]
[1742796463457,0.2747183,87040.0,87039.0,0.19469286]
[1742796469654,0.2747183,87040.0,87039.0,0.1800087]
[1742796472064,0.2747183,87040.0,87039.0,0.21989028]
[1742796472262,0.2747183,87040.0,87039.0,0.25199028]
[1742796472655,0.2747183,87040.0,87039.0,0.22744777]
[1742796473569,0.2741509,87040.0,87039.0,0.22744777]
[1742796473959,0.3890383,87040.0,87039.0,0.22744777]
[1742796474358,0.3890383,87040.0,87039.0,0.25231317]
[1742796474557,0.4197383,87040.0,87039.0,0.25231317]
[1742796474758,0.14850244,87040.0,87039.0,0.25231317]
[1742796474962,0.0004,87048.0,87044.0,0.0574407]
[1742796475262,0.0004,87048.0,87047.0,0.1148781]
[1742796475469,0.0004,87048.0,87047.0,0.1165581]
[1742796475971,0.0004,87048.0,87047.0,0.16802718]
[1742796476462,0.0004,87048.0,87047.0,0.18462022]
[1742796476663,0.0004,87048.0,87047.0,0.14441615]
[1742796476865,0.0004,87048.0,87047.0,0.18620228]
[1742796477574,0.0004,87048.0,87047.0,0.21884763]
[1742796478367,0.0004,87048.0,87047.0,0.20225419]
[1742796479163,0.0004,87048.0,87047.0,0.16960884]
[1742796480470,0.0574351,87053.0,87047.0,0.16960884]
[1742796480676,8e-05,87071.0,87047.0,0.16960884]
[1742796480980,0.31407796,87106.0,87048.0,0.09509053]
[1742796481180,0.0573799,87137.0,87126.0,0.114774]
[1742796481471,0.87244,87154.0,87136.0,0.3604]
[1742796481472,0.29,87151.0,87136.0,0.3604]
[1742796481667,0.1721116,87151.0,87150.0,0.37855528]
[1742796481866,0.0573706,87151.0,87150.0,0.45411905]
[1742796482073,0.14712333,87151.0,87150.0,0.91672073]
[1742796482371,0.11484088,87151.0,87150.0,0.97876071]
[1742796482576,0.06317902,87151.0,87150.0,1.00447525]
[1742796482771,0.87244,87154.0,87150.0,0.88973295]
[1742796482968,0.87244,87154.0,87151.0,0.09194299]
[1742796483163,0.26186736,87153.0,87150.0,0.07450996]
[1742796483369,0.0573698,87152.0,87151.0,0.08252508]
[1742796483570,0.14712333,87152.0,87151.0,0.03382508]
[1742796483873,0.14712333,87152.0,87151.0,0.23109129]
[1742796483874,0.11594141,87152.0,87151.0,0.23109129]
[1742796484077,0.00120001,87152.0,87151.0,0.23109129]
[1742796484375,0.37780444,87152.0,87151.0,0.16618159]
[1742796484579,0.62386304,87152.0,87151.0,0.03415651]
[1742796484778,0.19809204,87152.0,87138.0,0.3608]
[1742796485077,0.3608,87149.0,87140.0,0.0573775]
[1742796485295,0.3608,87142.0,87140.0,0.0585775]
[1742796485578,0.3608,87142.0,87136.0,0.01764015]
[1742796485764,0.1147595,87137.0,87136.0,0.00084]
[1742796485969,0.10060001,87137.0,87126.0,0.01762765]
[1742796486174,0.08027978,87136.0,87129.0,0.1147691]
[1742796486481,0.4755687,87130.0,87129.0,0.00088]
[1742796486681,0.4755687,87130.0,87126.0,0.01762765]
[1742796486682,0.36140001,87130.0,87109.0,0.0305]
[1742796486981,0.11317978,87129.0,87122.0,0.057389]
[1742796487275,0.11381978,87129.0,87128.0,0.1147713]
[1742796487573,0.11381978,87129.0,87128.0,0.1153713]
[1742796487775,0.14507978,87129.0,87128.0,0.1153713]
[1742796488081,0.25985673,87129.0,87128.0,0.1153713]
[1742796488274,0.26053673,87129.0,87128.0,0.1153713]
[1742796488671,0.0001712,87138.0,87137.0,0.1147595]
[1742796488979,0.0001712,87138.0,87137.0,0.4763195]
[1742796488980,0.0201712,87138.0,87137.0,0.4763195]
[1742796489180,0.10045098,87138.0,87137.0,0.4763195]
[1742796489482,0.19590398,87138.0,87137.0,0.4763195]
[1742796489666,0.19590398,87138.0,87137.0,0.36156]
[1742796489978,0.73670398,87138.0,87123.0,0.1147774]
[1742796490174,0.3608,87131.0,87123.0,0.0006]
[1742796490380,0.4755766,87124.0,87123.0,0.0006]
[1742796490578,0.1147792,87122.0,87119.0,0.00045914]
[1742796490766,0.11537921,87122.0,87119.0,0.00045914]
[1742796490971,0.19565899,87122.0,87121.0,0.00077211]
[1742796491176,0.26045899,87122.0,87121.0,0.00077211]
[1742796491481,0.26045899,87122.0,87121.0,0.11555261]
[1742796491482,0.13408422,87122.0,87121.0,0.11555261]
[1742796491671,0.13488422,87122.0,87121.0,0.11555261]
[1742796491872,0.13408422,87122.0,87121.0,0.11555261]
[1742796492071,0.13480422,87122.0,87121.0,0.11555261]
[1742796492466,0.00072,87122.0,87121.0,0.11555261]
[1742796492671,0.22106525,87139.0,87135.0,0.1147616]
[1742796492976,0.00068,87139.0,87137.0,0.1147588]
[1742796493168,0.00068,87139.0,87138.0,0.1147581]
[1742796493367,0.00068,87139.0,87138.0,0.1155181]
[1742796493881,0.11544049,87139.0,87138.0,0.1465181]
[1742796494180,0.11544049,87139.0,87138.0,0.5073181]
[1742796494774,0.11544049,87139.0,87138.0,0.5375181]
[1742796494974,0.14894049,87139.0,87138.0,0.5375181]
[1742796495273,0.26369729,87139.0,87138.0,0.36156]
[1742796495469,0.1147687,87130.0,87122.0,0.0302]
[1742796495675,0.1154487,87130.0,87129.0,0.3614]
[1742796496175,0.23020853,87130.0,87129.0,0.3614]
[1742796496682,0.26160853,87130.0,87129.0,0.2117]
[1742796496879,0.62240853,87130.0,87129.0,0.0006]
[1742796497077,0.62240853,87130.0,87122.0,0.1147783]
[1742796497078,0.1147778,87124.0,87122.0,0.1147783]
[1742796497281,0.1154978,87124.0,87122.0,0.1471983]
[1742796497780,0.22955815,87123.0,87122.0,0.00072]
[1742796497984,0.1147819,87120.0,87119.0,0.2744384]
[1742796498185,0.2854619,87120.0,87119.0,0.2750784]
[1742796498483,0.1147977,87108.0,87107.0,0.0332]
[1742796498680,1.34819771,87108.0,87107.0,0.03408]
[1742796498874,0.98739771,87108.0,87107.0,0.03408]
[1742796499074,0.98739771,87108.0,87107.0,0.148879]
[1742796499075,1.23340001,87108.0,87107.0,0.148879]
[1742796499284,0.98738487,87108.0,87107.0,0.148879]
[1742796500380,0.98738487,87108.0,87107.0,0.510679]
[1742796500686,0.98738487,87108.0,87107.0,0.509679]
[1742796500879,0.98738487,87108.0,87107.0,0.511679]
[1742796501286,0.98738487,87108.0,87107.0,0.512679]
[1742796501488,0.64277875,87108.0,87107.0,0.512679]
[1742796501684,0.64277875,87108.0,87107.0,0.545079]
[1742796502287,0.64277875,87108.0,87107.0,0.543079]
[1742796502677,0.64277875,87108.0,87107.0,0.544079]
[1742796503279,0.64277875,87108.0,87107.0,0.543079]
[1742796503475,0.64277875,87108.0,87107.0,0.545079]
[1742796504181,0.64277875,87108.0,87107.0,0.543079]
[1742796504390,0.64277875,87108.0,87107.0,0.544079]
[1742796504887,0.00088001,87108.0,87107.0,0.544079]
[1742796505083,0.9291404,87136.0,87128.0,0.1147705]
[1742796505279,0.00068001,87131.0,87129.0,0.0326]
[1742796505483,0.00068001,87131.0,87129.0,0.03324]
[1742796505484,0.1147687,87130.0,87129.0,0.03324]
[1742796505681,0.2480404,87130.0,87129.0,0.00064]
[1742796505883,0.1507717,87130.0,87129.0,0.00064]
[1742796506187,0.1507717,87130.0,87129.0,0.34159983]
[1742796506188,0.2655417,87130.0,87129.0,0.34159983]
[1742796506384,0.2655417,87130.0,87129.0,0.34219983]
[1742796506784,0.1507717,87130.0,87129.0,0.34219983]
[1742796506976,0.1332717,87130.0,87129.0,0.38569188]
[1742796507178,0.1332717,87130.0,87129.0,0.53306188]
[1742796507381,0.1153717,87130.0,87129.0,0.89386188]
[1742796507584,0.3608,87156.0,87143.0,0.1147516]
[1742796507884,8e-05,87145.0,87143.0,0.57218697]
[1742796508282,0.11517169,87144.0,87143.0,0.57218697]
[1742796508492,0.11517169,87144.0,87143.0,0.78537687]
[1742796508681,0.08933836,87144.0,87143.0,0.81375669]
[1742796508890,0.03062467,87144.0,87143.0,0.50318874]
[1742796509194,0.03134467,87144.0,87143.0,0.86403424]
[1742796509388,0.00847412,87149.0,87148.0,0.114745]
[1742796509589,0.00847412,87149.0,87148.0,0.28356387]
[1742796509788,0.11475325,87149.0,87148.0,0.23333182]
[1742796509983,0.22949695,87149.0,87148.0,0.11858682]
[1742796510184,0.11475325,87149.0,87148.0,0.23333182]
[1742796510384,0.22949695,87149.0,87148.0,0.31081879]
[1742796510799,0.1147437,87149.0,87148.0,4.06713748]
[1742796511295,0.22949036,87149.0,87148.0,4.09773748]
[1742796511495,0.48524729,87149.0,87148.0,4.07547969]
[1742796511796,0.48524729,87149.0,87148.0,4.05753938]
[1742796511991,0.59999099,87149.0,87148.0,4.05753938]
[1742796512192,0.59899099,87149.0,87148.0,4.05753938]
[1742796512396,0.59999099,87149.0,87148.0,4.05753938]
[1742796512596,0.59999099,87149.0,87148.0,4.07967008]
[1742796512898,0.59999099,87149.0,87148.0,4.05745991]
[1742796513102,0.59999099,87149.0,87148.0,4.07959604]
[1742796513285,0.59999099,87149.0,87148.0,2.92758893]
[1742796513595,0.6533078,87149.0,87148.0,2.83465173]
[1742796513898,0.76873446,87149.0,87148.0,2.72986004]
[1742796514098,0.76873446,87149.0,87148.0,2.14777311]
[1742796514292,0.76873446,87149.0,87148.0,2.10758462]
[1742796514485,0.42426194,87149.0,87148.0,2.10758462]
[1742796514689,0.78506194,87149.0,87148.0,2.06739613]
[1742796514889,0.78406194,87149.0,87148.0,2.06739613]
[1742796515199,0.78506194,87149.0,87148.0,2.02720764]
[1742796515588,0.78506194,87149.0,87148.0,1.98701915]
[1742796515786,0.78506194,87149.0,87148.0,1.59870384]
[1742796515987,0.78506194,87149.0,87148.0,1.55851535]
[1742796516187,0.7937659,87149.0,87148.0,1.55851535]
[1742796516392,0.7937659,87149.0,87148.0,1.51832686]
[1742796517191,0.6437659,87149.0,87148.0,1.51832686]
[1742796517391,1.1446059,87149.0,87148.0,1.51832686]
[1742796517592,1.0446059,87149.0,87148.0,1.51832686]
[1742796517795,1.3346059,87149.0,87148.0,0.47896323]
[1742796518597,1.1546059,87149.0,87148.0,0.47896323]
[1742796519792,1.1546059,87149.0,87148.0,0.39731104]
[1742796519793,1.6654059,87149.0,87148.0,0.39731104]
[1742796520104,0.1147516,87143.0,87142.0,0.32846754]
[1742796520295,0.3454716,87143.0,87142.0,0.32906754]
[1742796520496,0.4954716,87143.0,87142.0,0.22082105]
[1742796520795,0.61022616,87143.0,87142.0,0.16888435]
[1742796520988,0.61022616,87143.0,87142.0,0.12868614]
[1742796521396,0.1147529,87142.0,87135.0,0.0306]
[1742796521695,0.1147621,87135.0,87134.0,0.9869435]
[1742796521894,0.1147621,87135.0,87134.0,0.9875435]
[1742796521895,0.7364821,87135.0,87134.0,0.9875435]
[1742796522199,0.11567456,87135.0,87134.0,0.0006]
[1742796522390,0.11475456,87135.0,87134.0,0.4761634]
[1742796522708,0.02160589,87142.0,87141.0,0.1147542]
[1742796522890,0.2456729,87142.0,87141.0,0.41978472]
[1742796523094,0.13096001,87142.0,87141.0,0.39206219]
[1742796523396,0.34047801,87142.0,87141.0,0.39206219]
[1742796523599,0.23147801,87142.0,87141.0,0.39206219]
[1742796523995,0.23147801,87142.0,87141.0,0.37473561]
[1742796524196,0.23147801,87142.0,87141.0,0.39189554]
[1742796524403,0.23147801,87142.0,87141.0,0.37473561]
[1742796524598,0.23147801,87142.0,87141.0,0.36148]
[1742796524801,0.11672511,87142.0,87141.0,0.49339357]
[1742796525004,0.11672511,87142.0,87141.0,0.36148]
[1742796525005,0.230518,87142.0,87141.0,0.36148]
[1742796525206,0.231438,87142.0,87141.0,0.36148]
[1742796526206,0.1156851,87142.0,87141.0,0.36148]
[1742796526408,0.1157651,87142.0,87141.0,0.36148]
[1742796526702,0.230518,87142.0,87141.0,0.36148]
[1742796526906,0.231518,87142.0,87141.0,0.36148]
[1742796527096,0.230518,87142.0,87141.0,0.36148]
[1742796527405,1.103198,87142.0,87141.0,0.36148]
[1742796527606,0.231518,87142.0,87141.0,0.36148]
[1742796527905,0.0668651,87142.0,87141.0,0.4762342]
[1742796528095,0.0668651,87142.0,87141.0,0.36148]
[1742796528403,0.221618,87142.0,87141.0,0.37708023]
[1742796528607,0.451618,87142.0,87141.0,0.37708023]
[1742796528802,0.451618,87142.0,87141.0,0.58198197]
[1742796528803,0.482018,87142.0,87141.0,0.58198197]
[1742796529101,0.482018,87142.0,87141.0,0.22118197]
[1742796529292,0.632018,87142.0,87141.0,0.09082718]
[1742796529493,0.1147595,87137.0,87136.0,0.27320233]
[1742796529796,0.74667951,87137.0,87136.0,0.27380233]
[1742796530001,0.89667951,87137.0,87136.0,0.27380233]
[1742796530205,1.01143539,87137.0,87136.0,0.23361382]
[1742796530407,1.01143539,87137.0,87136.0,0.23301382]
[1742796530596,0.1147621,87135.0,87134.0,0.0307]
[1742796530805,0.38588211,87135.0,87134.0,0.0307]
[1742796530999,0.1147713,87128.0,87127.0,0.0303]
[1742796531208,0.1147726,87127.0,87120.0,0.0303]
[1742796531399,0.1147792,87122.0,87121.0,0.0303]
[1742796531594,0.1147819,87120.0,87119.0,0.00045914]
[1742796531907,0.73670191,87120.0,87119.0,0.00045914]
[1742796532396,0.85147755,87120.0,87119.0,0.00045914]
[1742796533709,0.85247755,87120.0,87119.0,0.00145914]
[1742796533905,0.59247755,87120.0,87119.0,0.00145914]
[1742796534110,0.11689565,87120.0,87119.0,0.47704234]
[1742796534407,0.87193211,87143.0,87119.0,0.36225914]
[1742796534408,0.0315,87142.0,87119.0,0.36225914]
[1742796534604,0.1147608,87136.0,87135.0,0.3608]
[1742796535106,0.0573811,87135.0,87133.0,0.1147641]
[1742796535305,0.0573811,87135.0,87128.0,0.4181851]
[1742796535306,0.1147641,87134.0,87131.0,0.1147666]
[1742796535506,0.1147661,87132.0,87131.0,0.1147666]
[1742796536103,0.22953186,87132.0,87131.0,0.1147666]
[1742796536995,0.23453186,87132.0,87131.0,0.1157666]
[1742796537799,0.23453186,87132.0,87131.0,0.001]
[1742796538007,0.23453186,87132.0,87131.0,0.0632]
[1742796538208,0.23453186,87132.0,87131.0,0.1779674]
[1742796538709,0.23453186,87132.0,87131.0,0.0632]
[1742796539111,0.1147713,87128.0,87127.0,0.00017211]
[1742796539314,0.1147819,87120.0,87108.0,0.0573982]
[1742796539615,0.5655819,87120.0,87108.0,0.0573982]
[1742796539808,0.68035622,87120.0,87105.0,0.0574006]
[1742796540004,0.68035622,87120.0,87111.0,0.1147927]
[1742796540201,0.68035622,87120.0,87108.0,0.0573987]
[1742796540202,0.76135622,87120.0,87108.0,0.0573987]
[1742796540509,0.76211622,87120.0,87119.0,0.11524234]
[1742796540710,0.14593432,87120.0,87119.0,0.11524234]
[1742796540908,0.11477432,87120.0,87119.0,0.11592234]
[1742796541212,0.23031622,87120.0,87119.0,0.11592234]
[1742796541512,0.0573837,87131.0,87127.0,0.0573857]
[1742796541810,0.1147677,87131.0,87130.0,0.4755687]
[1742796542014,0.1155277,87131.0,87130.0,0.4761687]
[1742796542205,0.23031226,87131.0,87130.0,0.4761687]
[1742796542605,0.11554486,87131.0,87130.0,0.4761687]
[1742796543009,0.04714486,87131.0,87130.0,0.4761687]
[1742796543209,0.05274487,87131.0,87130.0,0.4771687]
[1742796543510,0.16751227,87131.0,87130.0,0.3624]
[1742796543709,0.19881227,87131.0,87130.0,0.4771687]
[1742796543903,0.20281227,87131.0,87130.0,0.4771687]
[1742796544110,0.20281227,87131.0,87130.0,0.3624]
[1742796544311,0.23341227,87131.0,87130.0,0.3624]
[1742796545513,0.22841227,87131.0,87130.0,0.3614]
[1742796545821,0.23341227,87131.0,87130.0,0.3614]
[1742796546211,0.22941227,87131.0,87130.0,0.3614]
[1742796546515,0.23241227,87131.0,87130.0,0.3614]
[1742796547016,0.34241227,87131.0,87130.0,0.3614]
[1742796547209,0.32241227,87131.0,87130.0,0.3614]
[1742796548923,0.23241227,87131.0,87130.0,0.3614]
[1742796549215,0.23241227,87131.0,87130.0,0.4761687]
[1742796549521,0.08704487,87131.0,87130.0,0.4761687]
[1742796549907,0.05574487,87131.0,87130.0,0.4761687]
[1742796550718,0.1147482,87146.0,87142.0,0.1147529]
[1742796550916,0.11572371,87143.0,87142.0,0.4763529]
[1742796551423,0.11574248,87143.0,87142.0,0.48933288]
[1742796551909,0.12997434,87143.0,87142.0,0.49033288]
[1742796552220,0.12997434,87143.0,87142.0,0.4773529]
[1742796552822,0.16267434,87143.0,87142.0,0.4773529]
[1742796553419,0.19477434,87143.0,87142.0,0.4773529]
[1742796554216,0.16267434,87143.0,87142.0,0.4773529]
[1742796554718,0.30952594,87143.0,87142.0,0.3626]
[1742796556316,0.19477434,87143.0,87142.0,0.4773529]
[1742796556927,0.30952594,87143.0,87142.0,0.3626]
[1742796558026,0.30952594,87143.0,87142.0,0.4773529]
[1742796559121,0.19477434,87143.0,87142.0,0.4773529]
[1742796559614,0.30952594,87143.0,87142.0,0.3626]
[1742796560019,0.30952594,87143.0,87142.0,0.4773529]
[1742796560217,0.19477434,87143.0,87142.0,0.4773529]
[1742796562325,0.30952594,87143.0,87142.0,0.4773529]
[1742796562529,0.30952594,87143.0,87142.0,0.3626]
[1742796562718,0.19477434,87143.0,87142.0,0.4773529]
[1742796563822,0.30952594,87143.0,87142.0,0.0018]
[1742796564027,0.30952594,87143.0,87142.0,0.001]
[1742796564220,0.30952594,87143.0,87142.0,0.00188]
[1742796565228,0.30952594,87143.0,87142.0,0.001]
[1742796565425,0.31748,87143.0,87142.0,0.001]
[1742796566327,0.31748,87143.0,87142.0,0.00012801]
[1742796567331,0.1147581,87138.0,87137.0,0.08904836]
[1742796567626,0.1155981,87138.0,87137.0,0.00084]
[1742796568026,0.23035925,87138.0,87137.0,0.00084]
[1742796568234,0.30121331,87138.0,87137.0,0.00084]
[1742796568624,0.30621331,87138.0,87137.0,0.00084]
[1742796569034,0.1147608,87136.0,87135.0,0.1147618]
[1742796569237,0.1156408,87136.0,87135.0,0.1155618]
[1742796569434,0.1156408,87136.0,87135.0,0.0008]
[1742796569629,0.23040195,87136.0,87135.0,0.1155621]
[1742796569938,0.23835601,87136.0,87135.0,0.1155621]
[1742796570836,0.12359521,87136.0,87135.0,0.1155621]
[1742796571230,0.23835601,87136.0,87135.0,0.1155621]
[1742796571827,0.24335601,87136.0,87135.0,0.1155621]
[1742796573432,0.12859521,87136.0,87135.0,0.1155621]
[1742796573633,0.24247601,87136.0,87135.0,0.1155621]
[1742796573947,0.25238038,87136.0,87135.0,0.1155621]
[1742796574543,0.13761958,87136.0,87135.0,0.1155621]
[1742796574839,0.00017211,87143.0,87142.0,0.1147529]
[1742796575031,0.00017211,87143.0,87142.0,0.4755529]
[1742796575234,0.00101211,87143.0,87142.0,0.4763929]
[1742796575434,0.11576371,87143.0,87142.0,0.4763929]
[1742796575635,0.23052749,87143.0,87142.0,0.4763929]
[1742796575841,0.11577589,87143.0,87142.0,0.4763929]
[1742796576037,0.11577589,87143.0,87142.0,0.5003929]
[1742796576336,0.18453589,87143.0,87142.0,0.4995529]
[1742796576733,0.30845296,87143.0,87142.0,0.4995529]
[1742796576936,0.30845296,87143.0,87142.0,0.4755529]
[1742796577335,0.19370136,87143.0,87142.0,0.4755529]
[1742796577727,0.30845296,87143.0,87142.0,0.3608]
[1742796577934,0.1147621,87135.0,87134.0,0.11493551]
[1742796578237,0.1147621,87135.0,87134.0,0.00017211]
[1742796578743,0.22951666,87135.0,87134.0,0.00017211]
[1742796578937,0.29321666,87135.0,87134.0,0.00017211]
[1742796580441,0.29401666,87135.0,87134.0,0.00097211]
[1742796582850,0.29401666,87135.0,87134.0,0.00014738]
[1742796583148,0.17925456,87135.0,87134.0,0.11491078]
[1742796583330,0.29401666,87135.0,87134.0,0.11491078]
[1742796585435,0.29401666,87135.0,87134.0,0.13881078]
[1742796585836,0.17925456,87135.0,87134.0,0.13881078]
[1742796586134,0.17925456,87135.0,87134.0,0.16921078]
[1742796586636,0.29401666,87135.0,87134.0,0.16921078]
[1742796586941,0.17925456,87135.0,87134.0,0.16921078]
[1742796587148,0.29401666,87135.0,87134.0,0.16921078]
[1742796588044,0.11555456,87135.0,87134.0,0.16921078]
[1742796588247,0.11475456,87135.0,87134.0,0.16921078]
[1742796589645,0.11535457,87135.0,87134.0,0.16921078]
[1742796589849,0.14555456,87135.0,87134.0,0.16921078]
[1742796590049,0.17923456,87135.0,87134.0,0.16921078]
[1742796590640,0.29399666,87135.0,87134.0,0.16921078]
[1742796591837,0.17923456,87135.0,87134.0,0.16921078]
[1742796592039,0.11543456,87135.0,87134.0,0.16921078]
[1742796592343,0.14623456,87135.0,87134.0,0.16921078]
[1742796593143,0.00068,87135.0,87134.0,0.16921078]
[1742796593352,0.00017211,87143.0,87142.0,0.1147529]
[1742796593547,0.00843515,87156.0,87154.0,0.1147358]
[1742796593744,0.0313,87157.0,87156.0,0.1147344]
[1742796593943,0.14605456,87157.0,87156.0,0.1155344]
[1742796594143,0.11555456,87157.0,87156.0,0.1155344]
[1742796594350,0.0008,87157.0,87156.0,0.4763344]
[1742796594647,0.0004,87160.0,87159.0,0.1147305]
[1742796594854,0.1159292,87160.0,87159.0,0.1155305]
[1742796595149,0.0012,87160.0,87159.0,0.1155305]
[1742796596437,1e-07,87160.0,87159.0,0.1155305]
[1742796596647,0.00948242,87172.0,87171.0,0.1147147]
[1742796596837,0.03374001,87175.0,87174.0,0.1147108]
[1742796597041,0.14844941,87175.0,87174.0,0.1147108]
[1742796597241,0.14847219,87175.0,87174.0,0.1147108]
[1742796597750,0.1495122,87175.0,87174.0,0.1157508]
[1742796597941,0.14743218,87175.0,87174.0,0.1147108]
[1742796598347,0.1147134,87172.0,87171.0,0.3608]
[1742796598543,0.11472,87167.0,87164.0,0.3608]
[1742796598947,0.24943639,87167.0,87164.0,0.3608]
[1742796600544,0.24943639,87167.0,87164.0,0.4755238]
[1742796600743,0.1147226,87165.0,87164.0,0.4755238]
[1742796601250,0.0332,87166.0,87165.0,0.1147226]
[1742796601552,0.04226063,87166.0,87165.0,0.1147226]
[1742796601754,0.15698202,87166.0,87165.0,0.1147226]
[1742796602454,0.04225905,87166.0,87165.0,0.1147226]
[1742796602658,0.06514003,87166.0,87165.0,0.1158026]
[1742796602949,0.06514003,87166.0,87165.0,0.4766026]
[1742796603149,0.00941576,87166.0,87165.0,0.4766026]
[1742796604353,8e-05,87167.0,87166.0,0.1147213]
[1742796604649,0.0004,87176.0,87175.0,0.1147094]
[1742796604855,0.0004,87176.0,87175.0,0.4765494]
[1742796606746,0.01014431,87176.0,87175.0,0.4765494]
[1742796606954,0.01122431,87176.0,87175.0,0.4765494]
[1742796607558,0.01014431,87176.0,87175.0,0.4765494]
[1742796607944,0.0336,87176.0,87175.0,0.4765494]
[1742796608149,0.03464001,87176.0,87175.0,0.4765494]
[1742796609558,0.26301922,87176.0,87175.0,0.36184]
[1742796609761,0.26405923,87176.0,87175.0,0.36184]
[1742796610151,0.26405923,87176.0,87175.0,0.4765494]
[1742796611559,0.14935113,87176.0,87175.0,0.4765494]
[1742796613760,0.14835113,87176.0,87175.0,0.4765494]
[1742796614767,0.03364001,87176.0,87175.0,0.4765494]
[1742796615061,0.2,87185.0,87182.0,0.1147002]
[1742796615252,0.00085211,87183.0,87182.0,0.4755002]
[1742796615456,0.00085211,87183.0,87182.0,0.4769402]
[1742796616063,0.02327488,87183.0,87182.0,0.5339402]
[1742796616661,0.03161991,87183.0,87182.0,0.5339402]
[1742796617462,0.26102072,87183.0,87182.0,0.36224]
[1742796617662,0.2610248,87183.0,87182.0,0.31234]
[1742796617967,0.2610248,87183.0,87182.0,0.4256002]
[1742796618172,0.2610248,87183.0,87182.0,0.4269602]
[1742796618361,0.2610248,87183.0,87182.0,0.40113575]
[1742796618562,0.3249248,87183.0,87182.0,0.28643555]
[1742796618762,0.3249248,87183.0,87182.0,0.39977575]
[1742796618965,0.3249248,87183.0,87182.0,0.28747555]